Cogmind - Beta 12 X1 @@@ ROGUE MODE // 2022.07.31 @ 13:01:00 Player: Exp. Geonium Core Result: Destroyed by P-70 Sage with High-powered Shock Rifle Performance ------------- Evolutions (4) 2000 Regions Visited (12) 2400 Robots Destroyed (98) 490 Value Destroyed (5000) 5000 Prototype IDs (1) 20 Alien Tech Used (0) 0 Bonus (3333) 3333 TOTAL SCORE: 13243 Bonus ------- High Alert Combat Kills 397 Follower Combat Kills 619 Entered Garrisons 800 Used RIF Installer 2000 Friendly Fire -483 Cogmind --------- Core Integrity 0/850 Matter 150/300 Energy 100/100 System Corruption 10% Temperature Cool (0) Movement Core (550) Ox10 Location -6/Garrison Parts ------- > --- POWER (1) -------- (None) > --- PROPULSION (2) --- (None) > --- UTILITY (10) ----- Large Storage Unit Relay Coupler [Swarmer] (39) Relay Coupler [Grunt] (34) Relay Coupler [Sentry] (28) Relay Coupler [Sentry] (24) Relay Coupler [Demolisher] (28) Relay Coupler [Hunter] (20) > --- WEAPON (2) ------- Fusion Bomb Launcher > --- INVENTORY (15) --- Relay Coupler [NC] (33) Relay Coupler [NC] (37) Relay Coupler [Sentry] (31) Relay Coupler [Sentry] (24) Relay Coupler [Demolisher] (31) Relay Coupler [Heavy] (17) Relay Coupler [Behemoth] (17) Relay Coupler [Proto] (15) Relay Coupler [Proto] (15) Relay Coupler [Proto] (15) Relay Coupler [Proto] (15) Peak State ------------ > --- POWER ------------ (None) > --- PROPULSION ------- Carbon-fiber Leg Carbon-fiber Leg > --- UTILITY ---------- Advanced Heat Sink Large Storage Unit Relay Coupler [Swarmer] Relay Coupler [Grunt] Relay Coupler [Brawler] Relay Coupler [Sentry] Relay Coupler [Sentry] Relay Coupler [Demolisher] Relay Coupler [Hunter] Relay Coupler [Hunter] > --- WEAPON ----------- Heavy Particle Cannon Fusion Bomb Launcher > --- INVENTORY -------- Carbon-fiber Leg Relay Coupler [NC] Relay Coupler [NC] Relay Coupler [Sentry] Relay Coupler [Sentry] Relay Coupler [Demolisher] Relay Coupler [Heavy] Relay Coupler [Behemoth] Relay Coupler [Proto] Relay Coupler [Proto] Relay Coupler [Proto] Relay Coupler [Proto] Mini Grenade Launcher Datajack [Rating: 61] Favorites ----------- Power Light Nuclear Core Engine Improved Ion Engine Power Core Light Nuclear Core Propulsion Light Treads Treads Light Treads Leg Carbon-fiber Leg Wheel Armored Wheel Utility Advanced Targeting Computer Device Improved Terrain Scanner Storage Large Storage Unit Processor Advanced Targeting Computer Hackware Relay Coupler [Swarmer] Protection Improved Medium Armor Plating Weapon Gatling Laser Energy Gun Gatling Laser Energy Cannon Heavy Particle Cannon Ballistic Gun Light Assault Rifle Ballistic Cannon Magnetic Acceleration Cannon Launcher Mini Grenade Launcher Slashing Weapon Katana Special Melee Weapon Datajack Build | -11 -10 -10 -9 -8 -8 -8 -7 -7 -6 -6 -6 -6 ------- Run | Scr Mat Min Mat Mat Gar Mat Fac Gar Fac Gar Fac Gar Slots Evolved 8 | . . . 2 2 . . 2 . 2 . . . Power . | . . . . . . . . . . . . . Propulsion . | . . . . . . . . . . . . . Utility 8 | . . . 2 2 . . 2 . 2 . . . Weapon . | . . . . . . . . . . . . . Parts Attached 150 | 3 1 . 16 25 27 9 3 15 4 17 7 23 Power 9 | . . . 1 2 . 1 . 3 1 1 . . Engine 4 | . . . 1 1 . 1 . 1 . . . . Core 5 | . . . . 1 . . . 2 1 1 . . Reactor . | . . . . . . . . . . . . . Propulsion 34 | 2 . . 4 5 5 4 . 5 . 3 2 4 Treads 19 | 2 . . 1 5 3 2 . 3 . 1 1 1 Leg 6 | . . . . . . 2 . . . 1 . 3 Wheel 9 | . . . 3 . 2 . . 2 . 1 1 . Hover . | . . . . . . . . . . . . . Flight . | . . . . . . . . . . . . . Utility 55 | . 1 . 6 11 6 4 3 4 2 7 1 10 Device 7 | . . . . 1 . 1 . 2 . 1 1 1 Storage 6 | . . . 4 1 . . . 1 . . . . Processor 15 | . 1 . 2 6 3 1 1 . 1 . . . Hackware 20 | . . . . . 2 1 1 1 . 6 . 9 Protection 7 | . . . . 3 1 1 1 . 1 . . . Artifact . | . . . . . . . . . . . . . Weapon 52 | 1 . . 5 7 16 . . 3 1 6 4 9 Energy Gun 14 | . . . 2 5 3 . . . . 3 1 . Energy Cannon 2 | . . . . . . . . . . . 1 1 Ballistic Gun 9 | 1 . . 3 . 3 . . 1 . . 1 . Ballistic Cannon 1 | . . . . . . . . . 1 . . . Launcher 12 | . . . . 1 3 . . 1 . 2 . 5 Special Weapon . | . . . . . . . . . . . . . Impact Weapon . | . . . . . . . . . . . . . Slashing Weapon 7 | . . . . 1 5 . . 1 . . . . Piercing Weapon . | . . . . . . . . . . . . . Special Melee Weapon 7 | . . . . . 2 . . . . 1 1 3 Unidentified Prototypes 1 | . . . . 1 . . . . . . . . Parts Lost 60 | . . . 11 5 8 1 2 5 . 9 5 14 Power 6 | . . . 1 2 1 . . 1 . . 1 . Propulsion 22 | . . . 5 1 3 1 . 2 . 3 1 6 Utility 15 | . . . . . 3 . 1 1 . 3 2 5 Weapon 17 | . . . 5 2 1 . 1 1 . 3 1 3 Highest Loss Streak 8 | . . . 5 3 8 1 1 4 . 6 4 5 To Critical Strikes . | . . . . . . . . . . . . . Average Slot Usage (%) 89 | . 96 100 67 94 85 89 92 96 82 90 85 83 Engine 3 | . 14 14 3 5 . 5 7 5 . . . . Core 2 | . . . . 2 4 . . 1 3 6 2 . Treads 11 | . 28 28 9 15 15 2 15 14 . . 5 4 Leg 1 | . . . . . . 9 . . . 4 . 4 Wheel 2 | . . . 7 . . . . . 13 7 2 1 Device 3 | . . . . 4 3 1 . 6 6 5 1 1 Storage 7 | . 14 14 11 7 8 . . 4 6 6 6 6 Processor 17 | . 10 14 15 33 23 26 27 10 10 11 . . Hackware 19 | . . . . . 5 19 15 28 26 31 52 54 Protection 3 | . . . . 6 5 4 12 8 3 1 . . Energy Gun 5 | . . . 9 15 8 . . . . 1 1 . Ballistic Gun 3 | . 28 28 10 . 1 . . 5 . . 4 . Launcher 1 | . . . . . . . . . . 4 6 2 Slashing Weapon 1 | . . . . . 4 9 7 6 6 . . . Special Melee Weapon 1 | . . . . . 2 9 5 . . . . 2 Naked Turns . | . . . . . . . . . . . . . Heaviest Build 46 | 10 10 10 46 44 29 17 20 43 44 46 31 39 Greatest Support 43 | 40 40 40 40 40 40 43 43 43 24 24 30 30 Greatest Overweight (x) 14 | . . . 14 3 . . . . 1 3 2 2 Average Overweight (x) . | . . . . . . . . . . 2 1 1 Largest Inventory Capacity 20 | 8 8 8 20 20 10 5 5 15 15 15 15 15 Average Capacity 11 | 8 8 8 11 9 9 5 5 10 15 15 15 15 Most Carried 15 | 6 7 7 14 14 10 5 5 11 9 15 15 15 Average Carried 9 | 4 4 7 7 9 8 4 4 7 9 12 15 13 Final Capacity 20 | 8 8 8 20 10 5 5 5 15 15 15 15 15 Final Carried 15 | 4 7 7 14 10 4 5 4 9 9 15 15 11 Class Distribution -------------------- 53% | Mutant 41% | Bothacker-Mutant 5% | Scavenger-Mutant Dominant Class ---------------- Mutant | -10/Materials Mutant | -10/Mines Mutant | -9/Materials Mutant | -8/Materials Mutant | -8/Garrison Mutant | -8/Materials Mutant | -7/Factory Bothacker-Mutant | -7/Garrison Bothacker-Mutant | -6/Factory Bothacker-Mutant | -6/Garrison Bothacker-Mutant | -6/Factory Bothacker-Mutant | -6/Garrison Resources | -11 -10 -10 -9 -8 -8 -8 -7 -7 -6 -6 -6 -6 ----------- Run | Scr Mat Min Mat Mat Gar Mat Fac Gar Fac Gar Fac Gar Matter Collected 2489 | 200 100 . 210 238 348 81 . 212 . 321 234 545 Remotely . | . . . . . . . . . . . . . Salvage Created 3535 | . 231 . 364 978 489 60 . 536 . 363 234 280 Parts 161 | . 10 . 22 48 17 4 . 22 . 20 7 11 Haulers Intercepted 3 | . 1 . . 1 1 . . . . . . . Recyclers Shooed 6 | . 3 . 2 . . . . . . . 1 . Parts Field Recycled . | . . . . . . . . . . . . . Retrieved Matter . | . . . . . . . . . . . . . Parts Self-Destructed . | . . . . . . . . . . . . . Prevented . | . . . . . . . . . . . . . Kills | -11 -10 -10 -9 -8 -8 -8 -7 -7 -6 -6 -6 -6 ------- Run | Scr Mat Min Mat Mat Gar Mat Fac Gar Fac Gar Fac Gar Combat Hostiles Destroyed 87 | . 4 . 10 22 10 . . 8 . 18 4 11 Melee 7 | . . . . 1 . . . 4 . 1 1 . Guns 42 | . 4 . 10 20 5 . . . . 1 2 . Cannons 6 | . . . . . . . . . . 4 . 2 AOE 31 | . . . . 1 5 . . 4 . 12 . 9 Classes Destroyed 15 | . 2 . 3 6 . . . . . 2 2 . Worker 1 | . . . . 1 . . . . . . . . Builder 1 | . . . . . . . . . . . 1 . Tunneler 1 | . . . . 1 . . . . . . . . Hauler 3 | . 1 . . 1 1 . . . . . . . Recycler 2 | . . . 2 . . . . . . . . . Operator 1 | . . . . . . . . . . . 1 . Swarmer 29 | . . . 7 3 3 . . 4 . 5 . 7 Cutter 4 | . . . . . . . . . . 4 . . Grunt 28 | . 4 . 2 7 2 1 . . . 6 3 3 Brawler 2 | . . . . 1 1 . . . . . . . Duelist 2 | . . . . 1 1 . . . . . . . Sentry 13 | . . . 1 6 2 . . 4 . . . . Specialist 2 | . . . . 2 . . . . . . . . Hunter 5 | . . . . 2 1 . . . . 2 . . Programmer 3 | . . . . . . . . . . 1 1 1 Savage 1 | . . . . . . . . . . . . 1 Best Kill Streak 8 | . 2 . 4 7 5 . . 4 . 5 1 8 Combat Bots Only 8 | . 2 . 4 6 5 . . 4 . 5 1 8 Max Kills in Single Turn 6 | . 1 . 1 2 1 1 . 3 . 3 1 6 Gunslinging . | . . . . . . . . . . . . . Exploded 6 | . . . . 1 1 . . 3 . 3 . 6 Melee 1 | . . . . 1 . . . 1 . 1 1 . Uniques/NPCs Destroyed . | . . . . . . . . . . . . . Combat | -11 -10 -10 -9 -8 -8 -8 -7 -7 -6 -6 -6 -6 -------- Run | Scr Mat Min Mat Mat Gar Mat Fac Gar Fac Gar Fac Gar Damage Taken 8576 | . 337 . 1190 1031 1189 98 263 1193 . 1216 673 1386 Core 1820 | . 49 . 249 95 192 77 17 283 . 218 114 526 Absorbed by Shields . | . . . . . . . . . . . . . Core Remaining (%) 61 | 100 . 80 37 . . 33 . 57 . . . . Volleys Fired 292 | . 30 . 48 42 34 . . 2 . 45 53 38 Largest 2 | . 2 . 2 2 2 . . 2 . 2 1 1 Hottest 160 | . 40 . 115 160 141 . . 58 . 103 75 75 Shots Fired 413 | . 60 . 82 72 58 . . 3 . 47 53 38 Gun 317 | . 60 . 82 68 52 . . 1 . 5 49 . Cannon 44 | . . . . . . . . . . 28 . 16 Launcher 52 | . . . . 4 6 . . 2 . 14 4 22 Special . | . . . . . . . . . . . . . Kinetic 178 | . 60 . 55 . 5 . . 1 . 28 29 . Thermal 181 | . . . 27 68 47 . . . . 3 20 16 Explosive 52 | . . . . 4 6 . . 2 . 14 4 22 Electromagnetic 2 | . . . . . . . . . . 2 . . Robot Hit Streak 100 | . 9 . 14 74 100 . . 49 . 57 10 15 Robot Miss Streak 3 | . 2 . 2 1 1 . . . . 1 3 3 Penetration Max . | . . . . . . . . . . . . . Secondary Targets 3 | . 1 . 2 . . . . . . . . . Max Gunslinging Chain 1 | . 1 . 1 . . . . . . . . . Shots Hit Robots 349 | . 48 . 52 69 52 9 2 35 . 27 36 19 Core Hits 213 | . 16 . 28 54 25 1 . 18 . 38 9 24 Critical Kills . | . . . . . . . . . . . . . Critical Parts Destroyed . | . . . . . . . . . . . . . Critical Strikes 13 | . . . 2 1 3 . . 5 . 1 1 . Burn 7 | . . . 2 1 3 . . . . . 1 . Blast 1 | . . . . . . . . . . 1 . . Sever 5 | . . . . . . . . 5 . . . . Melee Attacks 95 | . . . . 2 15 10 3 45 . 10 2 8 Impact . | . . . . . . . . . . . . . Slashing 77 | . . . . 2 15 3 3 45 . 9 . . Piercing . | . . . . . . . . . . . . . Sneak Attacks 3 | . . . . . . 2 . 1 . . . . Combat Hostiles . | . . . . . . . . . . . . . Follow-up Attacks . | . . . . . . . . . . . . . Damage Inflicted 10521 | . 422 . 618 1727 1215 142 67 1529 . 2035 786 1980 Guns 4399 | . 419 . 616 1518 991 . . . . 78 777 . Cannons 563 | . . . . . . . . . . 388 . 175 Explosions 3813 | . . . . 143 224 . . 200 . 1436 5 1805 Melee 1665 | . . . . . . 142 67 1323 . 133 . . Ramming 81 | . 3 . 2 66 . . . 6 . . 4 . Kinetic 1726 | . 419 . 363 . 62 . . . . 388 494 . Thermal 3213 | . . . 253 1518 929 . . . . 55 283 175 Explosive 3813 | . . . . 143 224 . . 200 . 1436 5 1805 Electromagnetic 23 | . . . . . . . . . . 23 . . Impact . | . . . . . . . . . . . . . Slashing 1665 | . . . . . . 142 67 1323 . 133 . . Piercing . | . . . . . . . . . . . . . Highest Corruption 10 | . . . 2 . 5 5 . . . 4 7 10 Average Corruption 5 | . . . 2 . 5 5 . . . 3 4 7 Corruption Purged . | . . . . . . . . . . . . . Corruption Blocked . | . . . . . . . . . . . . . Effects 53 | . . . . . 12 6 . . . 2 10 23 Message Errors 17 | . . . . . 3 4 . . . . 3 7 Matter Fused 16 | . . . . . 4 2 . . . 2 1 7 Heat Flow Errors 3 | . . . . . 3 . . . . . . . Energy Discharges 5 | . . . . . 1 . . . . . . 4 Data Loss (minor) 2 | . . . . . 1 . . . . . . 1 Data Loss (major) 5 | . . . . . . . . . . . 3 2 Misfires 2 | . . . . . . . . . . . 1 1 Alerts 1 | . . . . . . . . . . . 1 . Weapon Failures 2 | . . . . . . . . . . . 1 1 Overload Shots . | . . . . . . . . . . . . . Overflow Damage 171 | . . . . 6 . . . 35 . 5 . 125 Projectiles . | . . . . . . . . . . . . . Explosions 136 | . . . . 6 . . . . . 5 . 125 Melee 35 | . . . . . . . . 35 . . . . Knockbacks 2 | . . . . . . . . . . 2 . . Impact . | . . . . . . . . . . . . . Kinetic 2 | . . . . . . . . . . 2 . . Secondary . | . . . . . . . . . . . . . Self-Inflicted Damage 340 | . . . . . . . . . . 146 24 170 Shots 9 | . . . . . . . . . . 5 1 3 Rammed 31 | . 2 . 5 18 . . . 4 . . 2 . Targets Rammed 32 | . 2 . 5 19 . . . 4 . . 2 . Kicked . | . . . . . . . . . . . . . Crushed 1 | . . . . 1 . . . . . . . . Highest Temperature 422 | . 74 . 150 356 422 . . . . 14 170 11 Average Temperature 103 | . 31 . 62 114 140 . . . . 9 68 11 Received Heat Transfer 2550 | . 243 . 348 306 258 63 18 423 . 291 225 375 Effects 1 | . . . . . 1 . . . . . . . Damage (minor) 1 | . . . . . 1 . . . . . . . Siege Activations . | . . . . . . . . . . . . . Robots Corrupted . | . . . . . . . . . . . . . Combat Hostiles . | . . . . . . . . . . . . . Parts Fried 1 | . . . . . . . . . . 1 . . Impact Corruptions . | . . . . . . . . . . . . . Robots Melted 1 | . . . . . . . . . . . 1 . Combat Hostiles 1 | . . . . . . . . . . . 1 . Parts Melted 16 | . . . 3 7 4 . . . . . 2 . Heat Transferred 7312 | . . . 700 3488 2015 . . . . 100 750 259 Parts Sabotaged . | . . . . . . . . . . . . . Parts Stolen . | . . . . . . . . . . . . . Parts Stripped . | . . . . . . . . . . . . . Power Chain Reactions . | . . . . . . . . . . . . . Missiles Intercepted . | . . . . . . . . . . . . . Alert | -11 -10 -10 -9 -8 -8 -8 -7 -7 -6 -6 -6 -6 ------- Run | Scr Mat Min Mat Mat Gar Mat Fac Gar Fac Gar Fac Gar Peak Influence 841 | . 150 . 235 479 534 373 184 477 228 841 547 783 Initial 441 | . . . . 12 244 260 169 116 228 159 441 286 Average 339 | . 57 . 87 269 394 319 172 312 228 523 464 546 Maximum Alert Level 3 | . . . 1 2 2 1 . 2 1 3 2 3 Low Security (%) 28 | 100 100 100 86 41 . . 100 10 . 6 . . Level 1 34 | . . . 13 44 39 100 . 59 100 17 20 40 Level 2 31 | . . . . 13 60 . . 29 . 56 79 37 Level 3 5 | . . . . . . . . . . 19 . 22 Level 4 . | . . . . . . . . . . . . . Level 5 . | . . . . . . . . . . . . . High Security . | . . . . . . . . . . . . . Max Security . | . . . . . . . . . . . . . Squads Dispatched 9 | . . . 2 3 . 1 1 . . . 2 . Investigation 3 | . . . 1 1 . . 1 . . . . . Extermination 1 | . . . . . . . . . . . 1 . Reinforcement 5 | . . . 1 2 . 1 . . . . 1 . Assault . | . . . . . . . . . . . . . Garrison . | . . . . . . . . . . . . . Intercept . | . . . . . . . . . . . . . Searches Triggered . | . . . . . . . . . . . . . Construction Impeded . | . . . . . . . . . . . . . Haulers Reinforced . | . . . . . . . . . . . . . Active Scanning Responses . | . . . . . . . . . . . . . Cargo Convoy Interrupts . | . . . . . . . . . . . . . Alert ID Control Effect 6 | . . . . . . . . . . . . 6 Stealth | -11 -10 -10 -9 -8 -8 -8 -7 -7 -6 -6 -6 -6 --------- Run | Scr Mat Min Mat Mat Gar Mat Fac Gar Fac Gar Fac Gar Distress Signals 8 | . 1 . 2 3 1 1 . . . . . . Communications Jammed . | . . . . . . . . . . . . . Distress Signals . | . . . . . . . . . . . . . Times Spotted 175 | . 7 . 26 36 26 10 3 13 . 24 11 19 Peak Tracking Total 11 | . 3 . 9 6 11 6 3 4 . 6 4 4 Tactical Retreats 8 | . . . . 2 . 1 . 1 . 3 1 . Traps | -11 -10 -10 -9 -8 -8 -8 -7 -7 -6 -6 -6 -6 ------- Run | Scr Mat Min Mat Mat Gar Mat Fac Gar Fac Gar Fac Gar Traps Triggered 21 | . . . 1 1 1 . . 4 . 7 . 7 Indirectly . | . . . . . . . . . . . . . Trap Hack Attempts . | . . . . . . . . . . . . . Triggered . | . . . . . . . . . . . . . Disarmed . | . . . . . . . . . . . . . Reprogrammed . | . . . . . . . . . . . . . Reused . | . . . . . . . . . . . . . Traps Extracted . | . . . . . . . . . . . . . Installed . | . . . . . . . . . . . . . Triggered . | . . . . . . . . . . . . . Machines | -11 -10 -10 -9 -8 -8 -8 -7 -7 -6 -6 -6 -6 ---------- Run | Scr Mat Min Mat Mat Gar Mat Fac Gar Fac Gar Fac Gar Machines Disabled 15 | . . . . 2 2 . . 1 . 4 1 5 Max in Single Turn 1 | . . . . 1 1 . . 1 . 1 1 1 Garrison Relay 8 | . . . . . 1 . . 1 . 3 . 3 Machines Sabotaged . | . . . . . . . . . . . . . Garrisons Compromised . | . . . . . . . . . . . . . Overloaded Fab Kills . | . . . . . . . . . . . . . Hacking | -11 -10 -10 -9 -8 -8 -8 -7 -7 -6 -6 -6 -6 --------- Run | Scr Mat Min Mat Mat Gar Mat Fac Gar Fac Gar Fac Gar Machines Accessed 22 | . 3 . 1 7 . . 2 1 2 1 4 1 Terminals 17 | . 3 . 1 6 . . 1 1 . 1 3 1 Fabricators 1 | . . . . . . . . . 1 . . . Repair Stations . | . . . . . . . . . . . . . Recycling Units . | . . . . . . . . . . . . . Scanalyzers . | . . . . . . . . . . . . . Garrison Access 4 | . . . . 1 . . 1 . 1 . 1 . Total Hacks 46 | . 13 . 3 12 . . 6 2 3 1 5 1 Successful 22 | . 7 . . 6 . . 3 1 1 1 2 1 Failed 24 | . 6 . 3 6 . . 3 1 2 . 3 . Catastrophic 7 | . 2 . . 3 . . 1 . . . 1 . Database Lockouts . | . . . . . . . . . . . . . Manual 34 | . 13 . 3 9 . . 5 1 1 . 2 . Terminals 38 | . 13 . 3 11 . . 3 2 . 1 4 1 Fabricators 1 | . . . . . . . . . 1 . . . Repair Stations . | . . . . . . . . . . . . . Recycling Units . | . . . . . . . . . . . . . Scanalyzers . | . . . . . . . . . . . . . Garrison Access 7 | . . . . 1 . . 3 . 2 . 1 . Terminal Hacks 10 | . 4 . . 3 . . . 1 . 1 . 1 Part Schematic 1 | . 1 . . . . . . . . . . . Robot Schematic 1 | . 1 . . . . . . . . . . . Open Door 1 | . . . . . . . . . . . . 1 Branch Access Points 1 | . 1 . . . . . . . . . . . Emergency Access Points 1 | . . . . . . . . 1 . . . . Terminal Index 2 | . 1 . . 1 . . . . . . . . Garrison Index 1 | . . . . 1 . . . . . . . . Zone Layout 1 | . . . . 1 . . . . . . . . Garrison Registry 1 | . . . . . . . . . . 1 . . Fabricator Hacks . | . . . . . . . . . . . . . Repair Station Hacks . | . . . . . . . . . . . . . Recycling Unit Hacks . | . . . . . . . . . . . . . Scanalyzer . | . . . . . . . . . . . . . Garrison Access Hacks 4 | . . . . 1 . . 1 . 1 . 1 . Unlock Access 4 | . . . . 1 . . 1 . 1 . 1 . Unauthorized Hacks 8 | . 3 . . 2 . . 2 . . . 1 . Terminals 6 | . 3 . . 2 . . . . . . 1 . Botnet 4 | . 2 . . 2 . . . . . . . . Disrupt 1 | . . . . . . . . . . . 1 . Operators 1 | . 1 . . . . . . . . . . . Fabricators . | . . . . . . . . . . . . . Repair Stations . | . . . . . . . . . . . . . Recycling Units . | . . . . . . . . . . . . . Scanalyzers . | . . . . . . . . . . . . . Garrison Access 2 | . . . . . . . 2 . . . . . Restock 1 | . . . . . . . 1 . . . . . Reprogram 1 | . . . . . . . 1 . . . . . Data Cores Recovered . | . . . . . . . . . . . . . Used . | . . . . . . . . . . . . . Hacking Detections 18 | . 3 . 1 5 . . 1 1 2 . 4 1 Full Trace Events 3 | . . . 1 1 . . 1 . . . . . Feedback Events . | . . . . . . . . . . . . . Feedback Blocked . | . . . . . . . . . . . . . Robot Schematics Acquired 1 | . 1 . . . . . . . . . . . Robots Built . | . . . . . . . . . . . . . Authchips . | . . . . . . . . . . . . . Time . | . . . . . . . . . . . . . Total Robot Build Rating . | . . . . . . . . . . . . . Part Schematics Acquired 1 | . 1 . . . . . . . . . . . Parts Built . | . . . . . . . . . . . . . Authchips . | . . . . . . . . . . . . . Time . | . . . . . . . . . . . . . Total Part Build Rating . | . . . . . . . . . . . . . Parts Repaired . | . . . . . . . . . . . . . Time . | . . . . . . . . . . . . . Parts Recycled . | . . . . . . . . . . . . . Recycled Matter . | . . . . . . . . . . . . . Retrieved Matter . | . . . . . . . . . . . . . Retrieved Components . | . . . . . . . . . . . . . Parts Scanalyzed . | . . . . . . . . . . . . . Part Schematics Acquired . | . . . . . . . . . . . . . Parts Damaged . | . . . . . . . . . . . . . Bothacking | -11 -10 -10 -9 -8 -8 -8 -7 -7 -6 -6 -6 -6 ------------ Run | Scr Mat Min Mat Mat Gar Mat Fac Gar Fac Gar Fac Gar Used RIF Installer 4 | . . . . . 1 . . 1 . 1 . 1 Coupler Efficiency 1 | . . . . . . . . . . . . 1 Signal Jammer 1 | . . . . . . . . 1 . . . . Alert ID Control 1 | . . . . . . . . . . 1 . . Robots Hacked 12 | . . . . . . 5 . . . 1 1 5 Non-combat 1 | . . . . . . 1 . . . . . . Combat 11 | . . . . . . 4 . . . 1 1 5 Robot Hacks Applied 13 | . . . . . . 5 . . . 1 2 5 map_route 1 | . . . . . . 1 . . . . . . find_garrison 1 | . . . . . . . . . . . 1 . reboot_system 2 | . . . . . . . . . . . 1 1 overwrite_iff 2 | . . . . . . 1 . . . . . 1 streamctrl_high 1 | . . . . . . 1 . . . . . . formatsys_high 6 | . . . . . . 2 . . . 1 . 3 Relay Couplers Released 32 | . . . . . 4 . . 3 . 14 . 11 Machine Destruction 32 | . . . . . 4 . . 3 . 14 . 11 Attached 19 | . . . . . 2 1 . 1 . 6 . 9 Fabnet Peak Effective % . | . . . . . . . . . . . . . Robots Rewired . | . . . . . . . . . . . . . Allies Hacked . | . . . . . . . . . . . . . Hacks Repelled . | . . . . . . . . . . . . . Allies | -11 -10 -10 -9 -8 -8 -8 -7 -7 -6 -6 -6 -6 -------- Run | Scr Mat Min Mat Mat Gar Mat Fac Gar Fac Gar Fac Gar Total Allies 13 | . . . . . . 4 . . . 3 . 6 Largest Group 3 | . . . . . . 2 . . . 2 . 3 Highest-Rated Group 142 | . . . . . . 45 . . . 142 . 78 Highest-Rated Ally 80 | . . . . . . 29 . . . 80 . 29 Total Orders . | . . . . . . . . . . . . . Ally Attacks 109 | . . . . . . 17 . . . 35 . 57 Total Damage 2230 | . . . . . . 149 . . . 967 . 1114 Kills 17 | . . . . . . 3 . . . 5 . 9 Allies Corrupted 1 | . . . . . . 1 . . . . . . Allies Melted . | . . . . . . . . . . . . . Intel | -11 -10 -10 -9 -8 -8 -8 -7 -7 -6 -6 -6 -6 ------- Run | Scr Mat Min Mat Mat Gar Mat Fac Gar Fac Gar Fac Gar Robot Analysis Total . | . . . . . . . . . . . . . Derelict Logs Recovered . | . . . . . . . . . . . . . Drone Launches . | . . . . . . . . . . . . . Drone Recoveries . | . . . . . . . . . . . . . Exploration | -11 -10 -10 -9 -8 -8 -8 -7 -7 -6 -6 -6 -6 ------------- Run | Scr Mat Min Mat Mat Gar Mat Fac Gar Fac Gar Fac Gar Turns Passed 6742 | 5 444 34 483 1514 793 259 254 631 100 1001 501 723 Spaces Moved 3662 | 1 222 22 209 856 394 198 151 296 95 617 254 347 Core 337 | . . . 14 212 38 73 . . . . . . Treads 1909 | 1 222 22 91 644 342 34 151 285 . . 113 4 Legs 290 | . . . . . . 91 . . . . . 199 Wheels 1126 | . . . 104 . 14 . . 11 95 617 141 144 Hover . | . . . . . . . . . . . . . Flight . | . . . . . . . . . . . . . Fastest Speed 50 | 160 160 160 80 50 50 50 160 90 90 105 110 110 Average Speed 139 | 160 160 160 140 139 149 101 160 157 99 127 135 147 Slowest Speed 750 | 160 160 160 750 320 165 160 160 160 105 135 240 190 Overloaded Moves . | . . . . . . . . . . . . . Propulsion Burnouts . | . . . . . . . . . . . . . Robots Hopped . | . . . . . . . . . . . . . Cave-ins Triggered . | . . . . . . . . . . . . . Exploration Rate (%) 32 | 2 58 9 27 72 49 19 4 45 2 72 9 48 Regions Visited 12 Branch Regions 1 Pre-discovered Areas . | . . . . . . . . . . . . . Known Exits Taken 5 | . 1 . . 1 . . 1 . 1 . 1 . Unknown Exits Taken 4 | 1 . 1 1 . . 1 . . . . . . Scrap Searched . | . . . . . . . . . . . . . Spaces Dug 100 | . . . . 2 22 1 . 8 . 17 20 30 Terrain Destroyed 369 | . . . . 18 28 1 . 16 . 56 29 221 Melee 6 | . . . . 2 2 1 . . . 1 . . Projectile 4 | . . . . . . . . . . . . 4 AOE 359 | . . . . 16 26 . . 16 . 55 29 217 Terrain Rammed . | . . . . . . . . . . . . . Walls Destroyed . | . . . . . . . . . . . . . Machines Disabled . | . . . . . . . . . . . . . Actions | -11 -10 -10 -9 -8 -8 -8 -7 -7 -6 -6 -6 -6 --------- Run | Scr Mat Min Mat Mat Gar Mat Fac Gar Fac Gar Fac Gar Total 4713 | 5 261 21 317 1079 510 247 159 382 98 769 355 510 Wait 278 | . 4 . 26 102 27 22 . 6 . 20 35 36 Move 3652 | . 221 21 208 856 393 197 150 295 94 616 254 347 Hop . | . . . . . . . . . . . . . Pick Up 65 | . 3 . 12 15 2 3 1 7 . 19 . 3 Fast Attach 69 | . 1 . 8 13 9 7 2 7 4 5 5 8 Attach 37 | 2 . . 5 5 5 1 1 2 . 9 . 7 Detach 3 | . . . . 1 1 1 . . . . . . Swap 44 | 1 . . 3 7 13 1 . 6 . 3 2 8 Drop 60 | 2 . . 2 17 11 3 2 8 . 9 2 4 Fire 292 | . 30 . 48 42 34 . . 2 . 45 53 38 Melee 95 | . . . . 2 15 10 3 45 . 10 2 8 Ram 1 | . . . 1 . . . . . . . . . Kick . | . . . . . . . . . . . . . Crush 31 | . 2 . 4 19 . . . 4 . . 2 . Escape Stasis 80 | . . . . . . . . . . 32 . 48 Rewire 6 | . . . . . . 2 . . . 1 . 3 Trap . | . . . . . . . . . . . . . Miscellaneous . | . . . . . . . . . . . . . Route ------- -11/Scrapyard -10/Materials (discovered 2 exits: *Mat / *Min) -10/Mines -9/Materials -8/Materials (discovered 2 exits: *Fac / Gar) -8/Garrison -8/Materials -7/Factory -7/Garrison -6/Factory -6/Garrison (discovered 3 exits: *Fac x3) -6/Factory -6/Garrison (discovered 1 exit: [*Fac]) History --------- Turn | Location | Event 6 | -11/Scrapyard | Discovered new exit (range 0) 6 | -11/Scrapyard | Entered Materials 277 | -10/Materials | Identified exit to Mines 309 | -10/Materials | Build established: Mutant 364 | -10/Materials | Discovered new exit (range 5) 450 | -10/Materials | Entered Mines 478 | -10/Mines | Discovered new exit (range 5) 484 | -10/Mines | Entered Materials 484 | -9/Materials | Evolved 2 slots: Utility x2 575 | -9/Materials | Lost 5 parts (1p2n2w) 684 | -9/Materials | Lost 4 parts (2n2w) 854 | -9/Materials | Discovered new exit (range 13) 957 | -9/Materials | Core integrity fell below 50% 967 | -9/Materials | Entered another Materials area 967 | -8/Materials | Evolved 2 slots: Utility x2 1092 | -8/Materials | Lost 3 parts (1p1n1w) 1263 | -8/Materials | Discovered new exit (range 15) 2481 | -8/Materials | Identified exit to Garrison 2481 | -8/Materials | Entered Garrison 2586 | -8/Garrison | Triggered checkpoint 2832 | -8/Garrison | Discovered new exit (range 13) 2854 | -8/Garrison | Triggered checkpoint 2916 | -8/Garrison | Lost 8 parts (1p3n3u1w) 2996 | -8/Garrison | Installed Relay Interface Framework 3032 | -8/Garrison | Garrison Relay disabled 3250 | -8/Garrison | Core integrity fell below 50% 3274 | -8/Garrison | Entered Materials 3453 | -8/Materials | Discovered new exit (range 16) 3533 | -8/Materials | Entered Factory 3533 | -7/Factory | Evolved 2 slots: Utility x2 3767 | -7/Factory | Identified exit to Garrison 3787 | -7/Factory | Entered Garrison 3856 | -7/Garrison | Triggered checkpoint 3898 | -7/Garrison | Garrison Relay disabled 3941 | -7/Garrison | Expanded RIF knowledge: Signal Jamming 4149 | -7/Garrison | Spotted B-75 Beast 4172 | -7/Garrison | Build established: Bothacker-Mutant 4252 | -7/Garrison | Triggered checkpoint 4372 | -7/Garrison | Discovered new exit (range 10) 4386 | -7/Garrison | Triggered checkpoint 4418 | -7/Garrison | Entered Factory 4418 | -6/Factory | Evolved 2 slots: Utility x2 4438 | -6/Factory | Lost 4 parts (1p2n1u) 4439 | -6/Factory | Identified exit to Garrison 4518 | -6/Factory | Entered Garrison 4541 | -6/Garrison | Found embedded Infiltrators 4544 | -6/Garrison | Triggered checkpoint 4594 | -6/Garrison | Garrison Relay disabled 4714 | -6/Garrison | Triggered checkpoint 4750 | -6/Garrison | Triggered checkpoint 4789 | -6/Garrison | Lost 6 parts (3n2u1w) 4816 | -6/Garrison | Triggered checkpoint 4897 | -6/Garrison | Discovered new exit (range 10) 4909 | -6/Garrison | Spotted B-75 Beast 5017 | -6/Garrison | Discovered new exit (range 13) 5087 | -6/Garrison | Garrison Relay disabled 5108 | -6/Garrison | Triggered checkpoint 5156 | -6/Garrison | Discovered new exit (range 50) 5156 | -6/Garrison | Discovered new exit (range 15) 5156 | -6/Garrison | Discovered new exit (range 44) 5312 | -6/Garrison | Expanded RIF knowledge: Alert ID Control 5328 | -6/Garrison | Garrison Relay disabled 5435 | -6/Garrison | Found Relay Coupler [Proto] 5437 | -6/Garrison | Found Relay Coupler [Proto] 5439 | -6/Garrison | Found Relay Coupler [Proto] 5441 | -6/Garrison | Found Relay Coupler [Proto] 5499 | -6/Garrison | Found Fusion Bomb Launcher 5519 | -6/Garrison | Entered Factory 5715 | -6/Factory | Lost 4 parts (1p1n1u1w) 6020 | -6/Factory | Identified exit to Garrison 6020 | -6/Factory | Entered Garrison 6022 | -6/Garrison | Triggered checkpoint 6032 | -6/Garrison | Garrison Relay disabled 6082 | -6/Garrison | Triggered checkpoint 6103 | -6/Garrison | Garrison Relay disabled 6247 | -6/Garrison | Spotted B-86 Titan 6273 | -6/Garrison | Core integrity fell below 50% 6305 | -6/Garrison | Lost 3 parts (2n1u) 6333 | -6/Garrison | Destroyed 8 combat bots 6409 | -6/Garrison | Core integrity fell below 20% 6442 | -6/Garrison | Rescued a captive Derelict 6442 | -6/Garrison | Rescued a captive Derelict 6476 | -6/Garrison | Lost 5 parts (2n1u2w) 6484 | -6/Garrison | Discovered new exit (range 15) 6579 | -6/Garrison | Garrison Relay disabled 6614 | -6/Garrison | Expanded RIF knowledge: Coupler Efficiency 6694 | -6/Garrison | Build established: Mutant 6721 | -6/Garrison | System corruption reached 10% 6743 | -6/Garrison | Destroyed by P-70 Sage with High-powered Shock Rifle Last Messages --------------- 06636_ System corrupted: Matter fused (-6). 06655_ System corrupted: Component data lost. 06686_ System corrupted: Energy discharge (-36). 06687_ Acquired 42 matter. 06702_ Machine disabled. 06708_ Relay Coupler [Brawler] destroyed. 06708_ Destroyed Relay Coupler [Brawler]. 06714_ P-70 Sage destroyed. 06720_ Relay Coupler [Hunter] destroyed. 06721_ The unstable cave ceiling collapses. 06734_ Destroyed Imp. Heat Sink. 06736_ Lgt. Treads destroyed. 06736_ Destroyed Lgt. Treads. 06736_ Carbon-fiber Leg destroyed. 06736_ Destroyed Carbon-fiber Leg. 06737_ Mni. Grenade Launcher destroyed. 06740_ The unstable cave ceiling collapses. 06740_ Destroyed Antigrav System. 06742_ System corrupted: Substantial component data lost. 06743_ The unstable cave ceiling collapses. Map ----- +----------------------------------------------------+ | #?????????????????????????????????????????? | | #?????????????????????????????????????????? | | #?????????????????????????????????????????? | | #?????????????????????????????????????????? | | #?????????????????????????????????????????? | | "?????????????????????????????????????????? | | "?????????????????????????????????????????? | | "?????????????????????????????????????????? | | "?????????????????????????????????????????? | | #?????????????????????????????????????????? | | #?????????????????????????????????????????? | | #?????????#???????????????####????????????? | | #????????? ??????????????""" """"????????? | | #????????? ??????????????"" ???"????????? | | #????????? ??????????????" """"????????? | | #????????# ??????????????? #######?????? | | #????????# ???????????????" " ?????? | | #????????# ???????????????" #????? | | #????????# #######???????#" ????? | | ########?#=# # #???????" ? #???? | | #?%%# #???#???"" # #???? | | ###### ###/! # #???# ## # ???? | | #???## # %## #???# # ???? | | #???## #%## ## #???# #???? | | ###### ###! ### ###### < #????? | | @ p #????? | | [ #????? | | ! #????? | | ####### ## # ### ##????? | | ??????# ## ## # #?????? | | ??????# # ######## ##?????? | | ??????# ### ####?????############ ###??????? | | ??????# ## #????????????????????#????????? | | ??????# ## #######???????????????????????? | | ??????# ^ #???????????????????????? | | ??????##### ####" #???############????????? | | ??????????#[####" #####!!!## """"#????????? | | ????????###%% ## "#????????? | | ????????# [ ## ####!!!## """"#????????? | | ????????# #T ## ! #?############????????? | | ????????######## ! ###?????????????????????? | | ???????????????#####???????????????????????? | | ???????????????????????????????????????????? | | ???????????????????????????????????????????? | | ???????????????????????????????????????????? | | ???????????????????????????????????????????? | | ???????????????????????????????????????????? | | ???????????????????????????????????????????? | | ???????????????????????????????????????????? | | ???????????????????????????????????????????? | +----------------------------------------------------+ Best States ------------- Heat Dissipation 64 Energy Generation 18 Energy Capacity 310 Matter Stores 300 Matter Capacity 300 Sight Range 16 Terrain Scan Range 16 Terrain Scan Density 10 Armor Coverage 300 Resistance: EM 15 Evasion (%) 55 Targeting Accuracy 48 Melee Accuracy 15 Recoil Reduction 2 Defensive Hacking 10 Relay Coupler Types 7 Relay Coupler Value 224 Item Schematics ----------------- Datajack | -10/Materials | Hacked Robot Schematics ------------------ O-16 Technician | -10/Materials | Hacked Fabricated ------------ Nothing Alien Tech Used ----------------- None Achievements -------------- None Challenges ------------ None Game ------ Seed ThiefGlidesysArray Manual? 0 Play Time 01:04:18 Cumulative 264.3 hours Start 2022.07.31 @ 11:53:10 End 2022.07.31 @ 13:01:00 Sessions 1 Manual Loads 0 Difficulty Rogue Special Mode None Game No. 316 Rogue 316 Adventurer 0 Explorer 0 Win Type - Total 11 Types 8/0/2/1/0/0/0/0/0 Lore% 70 Gallery% 87 Achievement% 74 Wizard Run 0 Options --------- ASCII 0 Keyboard 0 Movement Numpad Keybinds 0 Fullscreen 1 Font 18/Terminus Map View 76x50 Tactical HUD 1 Map Filters NONE Filters NONE Steam 1 RUN: 3aa21d76-4c78-49fd-9bf8-69a321a9c2ba